Cogmind - Beta 16.1 @@@ ROGUE MODE // 2026.04.14 @ 17:09:21 Player: coopco Result: Destroyed by NS-XCB(R) with Subdweller Laser Performance ------------- Evolutions (0) 0 Regions Visited (3) 600 Robots Destroyed (16) 80 Value Destroyed (443) 443 Prototype IDs (0) 0 Alien Tech Used (0) 0 Bonus (0) 0 TOTAL SCORE: 1123 Bonus ------- None Cogmind --------- Core Integrity 0/250 Matter 300/300 Energy 84/100 System Corruption 0% Temperature Cool (6) Movement Walking (125) Location -10/Subcaves Parts ------- > --- POWER (1) -------- Subdweller Power Source > --- PROPULSION (2) --- Carbon-fiber Leg Titanium Leg > --- UTILITY (2) ------ Improved Heat Sink Large Storage Unit > --- WEAPON (2) ------- Small Laser Subdweller Laser > --- INVENTORY (15) --- Carbon-fiber Leg Carbon-fiber Leg Subdweller Monowheel Subdweller Monowheel Compact Battery (200) Makeshift Terrain Scanner Particle Charger Scrap Shield Subdweller Laser Slug Cannon Grenade Launcher Improved Datajack Axe Peak State ------------ > --- POWER ------------ Subdweller Power Source > --- PROPULSION ------- Carbon-fiber Leg Titanium Leg > --- UTILITY ---------- Improved Heat Sink Large Storage Unit > --- WEAPON ----------- Small Laser Subdweller Laser > --- INVENTORY -------- Subdweller Power Source Carbon-fiber Leg Carbon-fiber Leg Subdweller Monowheel Subdweller Monowheel Compact Battery Makeshift Terrain Scanner Particle Charger Scrap Shield Subdweller Laser Slug Cannon Grenade Launcher Improved Datajack Axe [Rating: 19] Favorites ----------- Power Light Nuclear Core Engine Subdweller Power Source Power Core Light Nuclear Core Propulsion Titanium Leg Leg Titanium Leg Wheel Wheel Utility Large Storage Unit Device Heat Sink Storage Large Storage Unit Weapon Small Laser Energy Gun Small Laser Launcher Grenade Launcher Slashing Weapon Axe Build | -11 -10 -10 -10 ------- Run | Yrd Mat Min Sub Slots Evolved . | . . . . Power . | . . . . Propulsion . | . . . . Utility . | . . . . Weapon . | . . . . Parts Attached 22 | 6 3 4 9 Power 4 | 1 . 1 2 Engine 3 | 1 . . 2 Core 1 | . . 1 . Reactor . | . . . . Propulsion 7 | 2 . 3 2 Treads . | . . . . Leg 4 | . . 2 2 Wheel 3 | 2 . 1 . Hover . | . . . . Flight . | . . . . Utility 4 | 1 2 . 1 Device 2 | . 1 . 1 Storage 2 | 1 1 . . Processor . | . . . . Hackware . | . . . . Protection . | . . . . Artifact . | . . . . Weapon 7 | 2 1 . 4 Energy Gun 5 | 2 1 . 2 Energy Cannon . | . . . . Ballistic Gun . | . . . . Ballistic Cannon . | . . . . Launcher 1 | . . . 1 Special Weapon . | . . . . Impact Weapon . | . . . . Slashing Weapon 1 | . . . 1 Piercing Weapon . | . . . . Special Melee Weapon . | . . . . Unidentified Prototypes . | . . . . Parts Lost 3 | . . 1 2 Power 1 | . . . 1 Propulsion 1 | . . 1 . Utility . | . . . . Weapon 1 | . . . 1 Highest Loss Streak 1 | . . 1 1 To Critical Strikes . | . . . . Average Backups 13 | 3 9 14 13 Power 1 | . 1 1 1 Propulsion 3 | 2 4 4 2 Utility 3 | . . 1 3 Weapon 4 | . 2 5 4 Tool/Special . | . . . . Unused Backups 21 | . . 4 17 Power 3 | . . 2 1 Propulsion 7 | . . 1 6 Utility 4 | . . . 4 Weapon 6 | . . 1 5 Tool/Special 1 | . . . 1 Average Slot Usage (%) 99 | . 88 99 100 Engine 4 | . 14 3 4 Core 9 | . . 10 9 Leg 22 | . . 3 28 Wheel 5 | . 28 23 . Device 13 | . 3 14 14 Storage 14 | . 14 14 14 Energy Gun 23 | . 28 28 22 Slashing Weapon 4 | . . . 5 Peak Build Rating 19 | 6 8 13 19 Average Rating 14 | 4 6 10 16 On Entrance 6 | . 6 8 13 Avg Prop Armor Cover (%) . | . . . . Naked Turns . | . . . . Heaviest Build 31 | 12 29 29 31 Greatest Support 32 | 20 20 27 32 Greatest Overweight (x) 2 | 1 1 2 1 Average Overweight (x) . | . . 1 . Largest Inventory Capacity 15 | 8 15 15 15 Average Capacity 14 | 7 13 15 15 Most Carried 15 | 6 14 15 15 Average Carried 14 | 3 10 14 14 Final Capacity 15 | 8 15 15 15 Final Carried 14 | 6 14 14 14 Class Distribution -------------------- 73% | Mutant 26% | Scavenger-Mutant Dominant Class ---------------- Mutant | -10/Materials Mutant | -10/Mines Mutant | -10/Subcaves Resources | -11 -10 -10 -10 ----------- Run | Yrd Mat Min Sub Matter Collected 495 | 260 30 40 165 Remotely . | . . . . Salvage Created 532 | . 124 178 230 Parts 30 | . 12 5 13 Haulers Intercepted . | . . . . Recyclers Shooed . | . . . . Parts Field Recycled . | . . . . Retrieved Matter . | . . . . Parts Self-Destructed 14 | . . . 14 Prevented . | . . . . Parts Restored . | . . . . Kills | -11 -10 -10 -10 ------- Run | Yrd Mat Min Sub Combat Hostiles Destroyed 16 | . 5 6 5 Guns 13 | . 5 5 3 AOE 2 | . . . 2 Classes Destroyed 3 | . 2 . 1 Swarmer 6 | . 3 3 . Grunt 5 | . 2 3 . Subdweller 5 | . . . 5 Best Kill Streak 5 | . 5 3 2 Combat Bots Only 5 | . 5 3 2 Max Kills in Single Turn 1 | . 1 1 1 Gunslinging . | . . . . Exploded 1 | . . . 1 Melee . | . . . . Uniques/NPCs Destroyed . | . . . . Combat | -11 -10 -10 -10 -------- Run | Yrd Mat Min Sub Hostile Shots Fired 79 | . 27 26 26 Missed 25 | . 7 6 12 Hits 54 | . 20 20 14 Projectile 54 | . 20 20 14 AOE 3 | . . . 3 Critical Strikes 3 | . . 2 1 Damage Taken 962 | . 183 205 574 Core 261 | . 26 27 208 Absorbed by Shields . | . . . . Core Remaining (%) 100 | 100 . . . Volleys Fired 50 | . 14 13 23 Largest 2 | . 2 2 2 Hottest 100 | . 80 90 100 Shots Fired 95 | . 28 26 41 Gun 90 | . 28 26 36 Cannon . | . . . . Launcher 5 | . . . 5 Special . | . . . . Kinetic . | . . . . Thermal 90 | . 28 26 36 Explosive 5 | . . . 5 Electromagnetic . | . . . . Robot Hit Streak 15 | . 5 5 15 Robot Miss Streak 5 | . 3 5 2 Penetration Max . | . . . . Secondary Targets 1 | . . . 1 Max Gunslinging Chain 1 | . . . 1 Shots Hit Robots 56 | . 16 12 28 Core Hits 26 | . 7 7 12 Critical Kills . | . . . . Critical Parts Destroyed . | . . . . Critical Strikes 2 | . . 2 . Burn 2 | . . 2 . Melee Attacks 7 | . . . 7 Impact . | . . . . Slashing 7 | . . . 7 Piercing . | . . . . Sneak Attacks . | . . . . Combat Hostiles . | . . . . Follow-up Attacks . | . . . . Damage Inflicted 976 | . 176 157 643 Guns 658 | . 176 157 325 Cannons . | . . . . Explosions 318 | . . . 318 Melee . | . . . . Ramming . | . . . . Kinetic . | . . . . Thermal 658 | . 176 157 325 Explosive 318 | . . . 318 Electromagnetic . | . . . . Impact . | . . . . Slashing . | . . . . Piercing . | . . . . Highest Corruption . | . . . . Average Corruption . | . . . . Corruption Purged . | . . . . Corruption Blocked . | . . . . Overload Shots . | . . . . Overflow Damage . | . . . . Projectiles . | . . . . Explosions . | . . . . Melee . | . . . . Knockbacks . | . . . . Impact . | . . . . Kinetic . | . . . . Secondary . | . . . . Self-Inflicted Damage . | . . . . Shots . | . . . . Rammed . | . . . . Targets Rammed . | . . . . Kicked . | . . . . Crushed . | . . . . Highest Temperature 246 | . 218 54 246 Average Temperature 67 | . 93 19 145 Received Heat Transfer 483 | . 42 84 357 Siege Activations . | . . . . Martial Activations . | . . . . Shielding Activations . | . . . . Robots Disrupted . | . . . . Combat Hostiles . | . . . . Robots Corrupted . | . . . . Combat Hostiles . | . . . . Parts Fried . | . . . . Impact Corruptions . | . . . . Robots Melted 1 | . . 1 . Combat Hostiles 1 | . . 1 . Parts Melted 2 | . 1 1 . Heat Transferred 1618 | . 400 593 625 Parts Sabotaged . | . . . . Parts Stolen . | . . . . Parts Stripped . | . . . . Power Chain Reactions . | . . . . Alert | -11 -10 -10 -10 ------- Run | Yrd Mat Min Sub Maximum Alert Level . | . . . . Low Security (%) 100 | 100 100 100 . Level 1 . | . . . . Level 2 . | . . . . Level 3 . | . . . . Level 4 . | . . . . Level 5 . | . . . . High Security . | . . . . Max Security . | . . . . Peak Influence 115 | . 115 70 . Initial 33 | . . 33 . Average 24 | . 55 17 . Influence Increases 275 | . 135 140 . Destroy 0b10 Robot/C 220 | . 100 120 . Destroy Leader 40 | . 20 20 . Lose Combat Pursuer 15 | . 15 . . Influence Decreases 275 | . 50 213 12 Entered New Map 59 | . . 52 7 Time Decay 206 | . 50 151 5 Lost Part 10 | . . 10 . Squads Dispatched 3 | . 2 1 . Investigation 1 | . . 1 . Extermination . | . . . . Reinforcement 2 | . 2 . . Assault . | . . . . Garrison . | . . . . Intercept . | . . . . Searches Triggered . | . . . . Construction Impeded . | . . . . Haulers Reinforced . | . . . . Active Scanning Responses . | . . . . Cargo Convoy Interrupts . | . . . . Stealth | -11 -10 -10 -10 --------- Run | Yrd Mat Min Sub Distress Signals . | . . . . Communications Jammed . | . . . . Distress Signals . | . . . . Times Spotted 38 | . 8 9 21 Peak Tracking Total 4 | . 4 3 4 Tactical Retreats 1 | . 1 . . Traps | -11 -10 -10 -10 ------- Run | Yrd Mat Min Sub Traps Triggered 2 | . . . 2 Indirectly . | . . . . Trap Hack Attempts . | . . . . Triggered . | . . . . Disarmed . | . . . . Reprogrammed . | . . . . Reused . | . . . . Traps Extracted . | . . . . Installed . | . . . . Triggered . | . . . . Machines | -11 -10 -10 -10 ---------- Run | Yrd Mat Min Sub Machines Disabled . | . . . . Max in Single Turn . | . . . . Machines Repaired . | . . . . Machines Dismantled . | . . . . Machines Sabotaged . | . . . . Overloaded Fab Kills . | . . . . Hacking | -11 -10 -10 -10 --------- Run | Yrd Mat Min Sub Machines Accessed 3 | . 1 1 1 Terminals 1 | . 1 . . Fabricators . | . . . . Repair Stations . | . . . . Recycling Units . | . . . . Scanalyzers . | . . . . Garrison Access . | . . . . Total Hacks 7 | . 2 1 4 Successful 5 | . . 1 4 Failed 2 | . 2 . . Catastrophic . | . . . . Database Lockouts . | . . . . Manual . | . . . . Terminals 2 | . 2 . . Fabricators . | . . . . Repair Stations . | . . . . Recycling Units . | . . . . Scanalyzers . | . . . . Garrison Access . | . . . . Terminal Hacks 5 | . . 1 4 Record 4 | . . . 4 Open Door 1 | . . 1 . Fabricator Hacks . | . . . . Repair Station Hacks . | . . . . Recycling Unit Hacks . | . . . . Scanalyzer . | . . . . Garrison Access Hacks . | . . . . Unauthorized Hacks . | . . . . Terminals . | . . . . Fabricators . | . . . . Repair Stations . | . . . . Recycling Units . | . . . . Scanalyzers . | . . . . Garrison Access . | . . . . Data Cores Recovered . | . . . . Used . | . . . . Hacking Detections 1 | . 1 . . Full Trace Events . | . . . . Feedback Events . | . . . . Feedback Blocked . | . . . . Robot Schematics Acquired . | . . . . Robots Built . | . . . . Authchips . | . . . . Time . | . . . . Total Robot Build Rating . | . . . . Part Schematics Acquired . | . . . . Parts Built . | . . . . Authchips . | . . . . Time . | . . . . Total Part Build Rating . | . . . . Part Studies Acquired . | . . . . Parts Repaired . | . . . . Time . | . . . . Parts Recycled . | . . . . Recycled Matter . | . . . . Retrieved Matter . | . . . . Retrieved Components . | . . . . Parts Scanalyzed . | . . . . Part Schematics Acquired . | . . . . Parts Damaged . | . . . . Bothacking | -11 -10 -10 -10 ------------ Run | Yrd Mat Min Sub Used RIF Installer . | . . . . Robots Hacked . | . . . . Non-combat . | . . . . Combat . | . . . . Robot Hacks Applied . | . . . . Relay Couplers Released . | . . . . Fabnet Peak Effective % . | . . . . Robots Rewired . | . . . . Allies Hacked . | . . . . Hacks Repelled . | . . . . Allies | -11 -10 -10 -10 -------- Run | Yrd Mat Min Sub Total Allies . | . . . . Largest Group . | . . . . Highest-Rated Group . | . . . . Highest-Rated Ally . | . . . . Total Orders . | . . . . Ally Attacks . | . . . . Total Damage . | . . . . Kills . | . . . . Allies Corrupted . | . . . . Allies Melted . | . . . . Intel | -11 -10 -10 -10 ------- Run | Yrd Mat Min Sub Active Infowar (turns) . | . . . . Robot Analysis Total . | . . . . Derelict Logs Recovered 2 | . . 1 1 Drone Launches . | . . . . Drone Recoveries . | . . . . Exploration | -11 -10 -10 -10 ------------- Run | Yrd Mat Min Sub Turns Passed 2901 | 43 146 508 2204 Spaces Moved 1796 | 33 100 431 1232 Core 1 | 1 . . . Treads . | . . . . Legs 1270 | . . 38 1232 Wheels 525 | 32 100 393 . Hover . | . . . . Flight . | . . . . Fastest Speed 50 | 50 80 95 125 Average Speed 147 | 80 90 103 168 Slowest Speed 195 | 95 95 195 195 Overloaded Moves . | . . . . Propulsion Burnouts . | . . . . Robots Hopped . | . . . . Potential Cave-ins . | . . . . Cave-ins Triggered . | . . . . Exploration Rate (%) 41 | 3 17 91 54 Regions Visited 3 Branch Regions 2 Pre-discovered Areas 1 | . . . 1 Known Exits Taken . | . . . . Unknown Exits Taken 3 | 1 1 1 . Scrap Searched 10 | . . 1 9 Spaces Dug . | . . . . Terrain Destroyed 28 | . . . 28 Melee . | . . . . Projectile . | . . . . AOE 28 | . . . 28 Terrain Rammed . | . . . . Walls Destroyed . | . . . . Machines Disabled . | . . . . Actions | -11 -10 -10 -10 --------- Run | Yrd Mat Min Sub Total 1945 | 46 126 469 1304 Wait 14 | 1 1 8 4 Move 1793 | 32 99 430 1232 Hop . | . . . . Pick Up 35 | 7 8 7 13 Fast Attach 7 | 5 1 . 1 Attach 6 | 1 1 1 3 Detach 1 | . 1 . . Swap 12 | . 1 3 8 Drop 20 | . . 7 13 Fire 50 | . 14 13 23 Melee 7 | . . . 7 Ram . | . . . . Kick . | . . . . Crush . | . . . . Escape Stasis . | . . . . Rewire . | . . . . Trap . | . . . . Miscellaneous . | . . . . Route ------- -11/Scrapyard -10/Materials -10/Mines (discovered 3 exits: [*Mat x2] / *Sub) -10/Subcaves (discovered 1 exit: Mat) History --------- Turn | Location | Event 14 | -11/Scrapyard | Discovered new exit (range 16) 44 | -11/Scrapyard | Entered Materials 59 | -10/Materials | Discovered new exit (range 10) 190 | -10/Materials | Entered Mines 288 | -10/Mines | Met a Derelict shopkeep closing up shop 325 | -10/Mines | Build established: Mutant 330 | -10/Mines | Learned Materials stockpile data 596 | -10/Mines | Discovered new exit (range 10) 666 | -10/Mines | Discovered new exit (range 8) 674 | -10/Mines | Discovered new exit (range 13) 698 | -10/Mines | Entered Subcaves 699 | -10/Subcaves | Approached by a straggling Scientist 740 | -10/Subcaves | Ambushed by Subdweller buried in earth 771 | -10/Subcaves | Identified exit to Materials 848 | -10/Subcaves | Ambushed by swarm of Subdwellers 954 | -10/Subcaves | Shifting Twisted Machinery released Slug Cannon 954 | -10/Subcaves | Shifting Twisted Machinery released Sub. Beam Cannon 1236 | -10/Subcaves | Visited Clippyterm 1242 | -10/Subcaves | Learned location of Extension (-6) 1862 | -10/Subcaves | Shifting Twisted Machinery released Spk. Treads 1946 | -10/Subcaves | Disturbed a concealed Subdweller 2156 | -10/Subcaves | Core integrity fell below 50% 2384 | -10/Subcaves | Core integrity fell below 20% 2453 | -10/Subcaves | Build established: Scavenger-Mutant 2667 | -10/Subcaves | Shifting Twisted Machinery released Scrap Shield 2898 | -10/Subcaves | Ambushed by Subdweller buried in earth 2902 | -10/Subcaves | Destroyed by NS-XCB(R) with Subdweller Laser Last Messages --------------- 02523_ Subatomizers dissect the Disposable Heat Sink. 02661_ Sub. Power Source shoots sparks and powers down. Scrap Shield falls loose from the Twisted Machinery. 02722_ Dropped Broken Sub. Power Source. 02832_ Acquired 9 matter. 02835_ Sub. Power Source shoots sparks and powers down. 02838_ Acquired 1 matter. 02855_ Searching scrap... 02855_ Found Piercing Trap. 02855_ Found Sub. Machine Gun. 02855_ Found 53 Matter. 02887_ Searching scrap... 02887_ Found Sub. Beam Cannon. 02887_ Found 42 Matter. 02898_ NS-XCB(R) comes tumbling out of the earth. Map ----- +----------------------------------------------------+ | ??############????????????##%##???????####???????? | | ?????????????????????????## ##???????????????????? | | ?????????????????????????# ##????????????????????? | | ?????????????????????????# ##????????????????????? | | ?????????????????????????## ##???????????????????? | | ??????????????????????????## ##??????????????????? | | ???????????????????????????## ##?????????????????? | | ????????????????????????????## ##????????????????? | | ?????????????????????????????## ##???????????????? | | ??????????????????????????????##%##??????????????? | | ???????????????????????????????## #??????????????? | | ????????????????????????????????# #??????????????? | | ???????????????????????????????## #??????????????? | | ??????????????????????????????## #??????????????? | | ?????????????????????????????##%###??????????????? | | ????????????????????????????##]##????????????????? | | ???????????????????????????##%##?????????????????? | | ??????????????????????????## ##??????????????????? | | ?????????????????????????## ##???????????????????? | | ?????????????????????????# ##????????????????????? | | ?????????????????????????# #?????????????????????? | | ????????????????????????## #?????????????????????? | | ???????????????????????## ###????????????????????? | | ???????????????????????# ## #????????????????????? | | ???????????????????????# #R#?????????????????????? | | ???????????????????????##@#??????????????????????? | | ????????????????????????## #?????????????????????? | | ??????????????????????????##?????????????????????? | | ?????????????????????????????????????????????????? | | ?????????????????????????????????????????????????? | | ?????????????????????????????????????????????????? | | ?????????????????????????????????????????????????? | | ?????????????????????????????????????????????????? | | ?????????????????????????????????????????????????? | | ?????????????????????????????????????????????????? | | ?????????????????????????????????????????????????? | | ?????????????????????????????????????????????????? | | ?????????????????????????????????????????????????? | | ?????????????????????????????????????????????????? | | ?????????????????????????????????????????????????? | | ?????????????????????????????????????????????????? | | ?????????????????????????????????????????????????? | | ??